[Event "FIDE U16 Olympiad_boards_1-80"]
[Site "Eindhoven, Netherlands"]
[Date "2023.08.14"]
[Round "3.51"]
[White "Tleukhanov, Yerlan"]
[Black "Manko, Mariia"]
[Result "1-0"]
[TimeControl "2700+10"]
[WhiteElo "1901"]
[BlackElo "1912"]

1. e4 {[%clk 00:45:17]} {[%emt 00:00:02]} c5 {[%clk 00:45:19]} {[%emt
00:00:02]} 2. Nf3 {[%clk 00:45:25]} {[%emt 00:00:02]} Nc6 {[%clk 00:45:27]}
{[%emt 00:00:02]} 3. Bb5 {[%clk 00:45:31]} {[%emt 00:00:04]} g6 {[%clk
00:45:29]} {[%emt 00:00:07]} 4. Bxc6 {[%clk 00:45:38]} {[%emt 00:00:03]} dxc6
{[%clk 00:45:37]} {[%emt 00:00:03]} 5. d3 {[%clk 00:45:43]} {[%emt 00:00:05]}
Bg7 {[%clk 00:45:43]} {[%emt 00:00:04]} 6. h3 {[%clk 00:45:50]} {[%emt
00:00:03]} b6 {[%clk 00:45:51]} {[%emt 00:00:01]} 7. e5 {[%clk 00:42:46]}
{[%emt 00:03:14]} Nh6 {[%clk 00:42:29]} {[%emt 00:03:31]} 8. O-O {[%clk
00:41:35]} {[%emt 00:01:23]} O-O {[%clk 00:41:45]} {[%emt 00:00:54]} 9. Re1
{[%clk 00:38:46]} {[%emt 00:02:59]} Nf5 {[%clk 00:40:51]} {[%emt 00:01:03]} 10.
a4 {[%clk 00:37:08]} {[%emt 00:01:48]} a5 {[%clk 00:40:01]} {[%emt 00:01:00]}
11. Nbd2 {[%clk 00:34:56]} {[%emt 00:02:23]} Nd4 {[%clk 00:33:12]} {[%emt
00:06:59]} 12. b3 {[%clk 00:31:50]} {[%emt 00:03:15]} Qd5 {[%clk 00:29:03]}
{[%emt 00:04:19]} 13. Bb2 {[%clk 00:30:52]} {[%emt 00:01:09]} f6 {[%clk
00:26:59]} {[%emt 00:02:14]} 14. Bxd4 {[%clk 00:26:21]} {[%emt 00:04:41]} cxd4
{[%clk 00:26:50]} {[%emt 00:00:19]} 15. exf6 {[%clk 00:25:07]} {[%emt
00:01:24]} exf6 {[%clk 00:26:30]} {[%emt 00:00:29]} 16. Nc4 {[%clk 00:24:47]}
{[%emt 00:00:30]} Rb8 {[%clk 00:25:37]} {[%emt 00:01:03]} 17. Re7 {[%clk
00:22:20]} {[%emt 00:02:37]} Bd7 {[%clk 00:18:43]} {[%emt 00:07:04]} 18. Qe2
{[%clk 00:17:51]} {[%emt 00:04:40]} Rfd8 {[%clk 00:16:52]} {[%emt 00:02:01]} 19.
Nxb6 {[%clk 00:15:58]} {[%emt 00:02:03]} Qd6 {[%clk 00:12:36]} {[%emt
00:04:25]} 20. Nxd7 {[%clk 00:14:34]} {[%emt 00:01:35]} Rxd7 {[%clk 00:12:23]}
{[%emt 00:00:23]} 21. Qe6+ {[%clk 00:14:41]} {[%emt 00:00:03]} Qxe6 {[%clk
00:12:24]} {[%emt 00:00:09]} 22. Rxe6 {[%clk 00:14:50]} {[%emt 00:00:01]} Rc8
{[%clk 00:11:45]} {[%emt 00:00:49]} 23. Nd2 {[%clk 00:10:53]} {[%emt 00:04:06]}
Kf7 {[%clk 00:09:52]} {[%emt 00:02:03]} 24. Rae1 {[%clk 00:10:37]} {[%emt
00:00:27]} Bf8 {[%clk 00:09:12]} {[%emt 00:00:50]} 25. Nc4 {[%clk 00:10:12]}
{[%emt 00:00:35]} Bb4 {[%clk 00:07:53]} {[%emt 00:01:28]} 26. R1e2 {[%clk
00:09:37]} {[%emt 00:00:45]} Rdd8 {[%clk 00:07:50]} {[%emt 00:00:14]} 27. f4
{[%clk 00:08:34]} {[%emt 00:01:12]} Re8 {[%clk 00:03:04]} {[%emt 00:04:57]} 28.
Rxe8 {[%clk 00:07:53]} {[%emt 00:00:52]} Rxe8 {[%clk 00:03:12]} 29. Re4 {[%clk
00:04:42]} {[%emt 00:03:20]} Rd8 {[%clk 00:01:35]} {[%emt 00:01:47]} 30. Kf2
{[%clk 00:02:59]} {[%emt 00:01:54]} h5 {[%clk 00:01:02]} {[%emt 00:00:43]} 31.
Kf3 {[%clk 00:02:25]} {[%emt 00:00:43]} Rd5 {[%clk 00:00:22]} {[%emt 00:00:51]}
32. g4 {[%clk 00:01:52]} {[%emt 00:00:43]} Bc3 {[%clk 00:00:20]} {[%emt
00:00:11]} 33. Kg3 {[%clk 00:00:44]} {[%emt 00:01:19]} hxg4 {[%clk 00:00:21]}
{[%emt 00:00:09]} 34. hxg4 {[%clk 00:00:52]} {[%emt 00:00:02]} Bb4 {[%clk
00:00:12]} {[%emt 00:00:19]} 35. Kh4 {[%clk 00:00:28]} {[%emt 00:00:33]} g5+
{[%clk 00:00:11]} {[%emt 00:00:11]} 36. fxg5 {[%clk 00:00:32]} {[%emt
00:00:06]} fxg5+ {[%clk 00:00:16]} {[%emt 00:00:05]} 37. Kh5 {[%clk 00:00:37]}
{[%emt 00:00:05]} Rc5 {[%clk 00:00:12]} {[%emt 00:00:15]} 38. Re5 {[%clk
00:00:35]} {[%emt 00:00:12]} Rxe5 {[%clk 00:00:12]} {[%emt 00:00:10]} 39. Nxe5+
{[%clk 00:00:43]} {[%emt 00:00:01]} Kf6 {[%clk 00:00:19]} {[%emt 00:00:04]} 40.
Nxc6 {[%clk 00:00:27]} {[%emt 00:00:26]} Bc3 {[%clk 00:00:16]} {[%emt
00:00:13]} 41. Kh6 {[%clk 00:00:33]} {[%emt 00:00:04]} Bd2 {[%clk 00:00:12]}
{[%emt 00:00:13]} 42. Nxd4 {[%clk 00:00:38]} {[%emt 00:00:05]} Be3 {[%clk
00:00:11]} {[%emt 00:00:11]} 43. Nf3 {[%clk 00:00:37]} {[%emt 00:00:12]} Bf4
{[%clk 00:00:11]} {[%emt 00:00:10]} 44. c3 {[%clk 00:00:38]} {[%emt 00:00:08]}
Be3 {[%clk 00:00:15]} {[%emt 00:00:07]} 45. b4 {[%clk 00:00:42]} {[%emt
00:00:06]} axb4 {[%clk 00:00:21]} {[%emt 00:00:03]} 46. cxb4 {[%clk 00:00:51]}
{[%emt 00:00:01]} Bf4 {[%clk 00:00:11]} {[%emt 00:00:20]} 47. a5 {[%clk
00:00:55]} {[%emt 00:00:07]} Bc7 {[%clk 00:00:19]} {[%emt 00:00:02]} 48. a6
{[%clk 00:00:54]} {[%emt 00:00:11]} Bb6 {[%clk 00:00:28]} 49. Nxg5 {[%clk
00:00:42]} {[%emt 00:00:21]} Be3 {[%clk 00:00:36]} {[%emt 00:00:02]} 50. Kh5
{[%clk 00:00:49]} {[%emt 00:00:03]} Bb6 {[%clk 00:00:12]} {[%emt 00:00:35]} 51.
Ne4+ {[%clk 00:00:51]} {[%emt 00:00:08]} Ke5 {[%clk 00:00:17]} {[%emt
00:00:05]} 52. g5 {[%clk 00:00:59]} {[%emt 00:00:02]} Kd4 {[%clk 00:00:23]}
{[%emt 00:00:04]} 53. g6 {[%clk 00:01:07]} {[%emt 00:00:02]} Kxd3 {[%clk
00:00:29]} {[%emt 00:00:05]} 54. Nc5+ {[%clk 00:01:14]} {[%emt 00:00:02]} Kc4
{[%clk 00:00:33]} {[%emt 00:00:06]} 55. g7 {[%clk 00:01:19]} {[%emt 00:00:04]}
1-0

[Event "FIDE U16 Olympiad_boards_1-80"]
[Site "Eindhoven, Netherlands"]
[Date "2023.08.14"]
[Round "3.52"]
[White "Rappazzo, Johannes"]
[Black "Madi, Aidana"]
[Result "1-0"]
[TimeControl "2700+10"]
[WhiteElo "1776"]
[BlackElo "1499"]

1. e4 {[%clk 00:45:18]} {[%emt 00:00:02]} c6 {[%clk 00:45:19]} {[%emt
00:00:02]} 2. Nc3 {[%clk 00:45:26]} {[%emt 00:00:01]} d5 {[%clk 00:45:27]}
{[%emt 00:00:02]} 3. Nf3 {[%clk 00:45:34]} {[%emt 00:00:02]} Bg4 {[%clk
00:45:34]} {[%emt 00:00:03]} 4. h3 {[%clk 00:45:43]} Bxf3 {[%clk 00:45:41]}
{[%emt 00:00:02]} 5. Qxf3 {[%clk 00:45:52]} {[%emt 00:00:02]} e6 {[%clk
00:45:50]} {[%emt 00:00:01]} 6. g3 {[%clk 00:45:58]} {[%emt 00:00:03]} Nd7
{[%clk 00:45:42]} {[%emt 00:00:19]} 7. d4 {[%clk 00:46:02]} {[%emt 00:00:06]}
Bb4 {[%clk 00:40:40]} {[%emt 00:05:12]} 8. Bg2 {[%clk 00:33:02]} {[%emt
00:13:10]} Qb6 {[%clk 00:38:01]} {[%emt 00:02:48]} 9. Qd3 {[%clk 00:31:37]}
{[%emt 00:01:36]} dxe4 {[%clk 00:37:14]} {[%emt 00:00:57]} 10. Bxe4 {[%clk
00:31:14]} {[%emt 00:00:32]} Ngf6 {[%clk 00:37:08]} {[%emt 00:00:16]} 11. Bg2
{[%clk 00:31:17]} {[%emt 00:00:07]} Rd8 {[%clk 00:35:57]} {[%emt 00:01:21]} 12.
a3 {[%clk 00:26:17]} {[%emt 00:05:10]} Be7 {[%clk 00:31:22]} {[%emt 00:04:46]}
13. O-O {[%clk 00:22:55]} {[%emt 00:03:32]} O-O {[%clk 00:30:54]} {[%emt
00:00:38]} 14. Be3 {[%clk 00:22:21]} {[%emt 00:00:44]} Nd5 {[%clk 00:29:23]}
{[%emt 00:01:42]} 15. Bd2 {[%clk 00:17:49]} {[%emt 00:04:41]} N7f6 {[%clk
00:26:22]} {[%emt 00:03:10]} 16. Ne2 {[%clk 00:15:03]} {[%emt 00:02:57]} c5
{[%emt 00:03:51]} 17. c4 {[%clk 00:13:22]} Nc7 {[%clk 00:24:24]} {[%emt
00:00:18]} 18. Be3 {[%clk 00:12:45]} {[%emt 00:00:47]} cxd4 {[%clk 00:22:09]}
{[%emt 00:02:25]} 19. Bxd4 {[%clk 00:12:29]} {[%emt 00:00:25]} Bc5 {[%clk
00:20:50]} {[%emt 00:01:30]} 20. Bxc5 {[%clk 00:11:28]} {[%emt 00:01:11]} Qxc5
{[%clk 00:20:58]} {[%emt 00:00:02]} 21. Qc3 {[%clk 00:11:26]} {[%emt 00:00:12]}
b6 {[%clk 00:18:43]} {[%emt 00:02:24]} 22. b4 {[%clk 00:10:16]} {[%emt
00:01:20]} Qg5 {[%clk 00:17:19]} {[%emt 00:01:35]} 23. Nd4 {[%clk 00:08:05]}
{[%emt 00:02:20]} Rd7 {[%clk 00:14:25]} {[%emt 00:03:04]} 24. Nc6 {[%clk
00:07:27]} {[%emt 00:00:49]} a6 {[%clk 00:12:38]} {[%emt 00:01:57]} 25. Rad1
{[%clk 00:07:06]} {[%emt 00:00:31]} b5 {[%clk 00:11:01]} {[%emt 00:01:47]} 26.
c5 {[%clk 00:04:31]} {[%emt 00:02:44]} Ncd5 {[%clk 00:10:39]} {[%emt 00:00:33]}
27. Qe5 {[%clk 00:04:21]} {[%emt 00:00:20]} Qxe5 {[%clk 00:07:16]} {[%emt
00:03:33]} 28. Nxe5 {[%clk 00:04:29]} {[%emt 00:00:02]} Rc7 {[%clk 00:07:25]}
{[%emt 00:00:01]} 29. Rd4 {[%clk 00:01:49]} {[%emt 00:02:49]} a5 {[%clk
00:06:30]} {[%emt 00:01:05]} 30. Ng4 {[%clk 00:00:51]} {[%emt 00:01:09]} Nxg4
{[%clk 00:05:13]} {[%emt 00:01:26]} 31. Bxd5 {[%clk 00:00:40]} {[%emt
00:00:22]} Ne5 {[%clk 00:04:27]} {[%emt 00:00:56]} 32. Bg2 {[%clk 00:00:37]}
{[%emt 00:00:13]} Nc4 {[%clk 00:04:16]} {[%emt 00:00:20]} 33. Rfd1 {[%clk
00:00:36]} {[%emt 00:00:11]} Nxa3 {[%clk 00:03:34]} {[%emt 00:00:53]} 34. bxa5
{[%clk 00:00:39]} {[%emt 00:00:07]} Rxc5 {[%clk 00:01:52]} {[%emt 00:01:52]} 35.
a6 {[%clk 00:00:44]} {[%emt 00:00:05]} Nc4 {[%clk 00:02:00]} {[%emt 00:00:02]}
36. a7 {[%clk 00:00:30]} {[%emt 00:00:23]} Nb6 {[%clk 00:00:53]} {[%emt
00:01:18]} 37. Rd6 {[%clk 00:00:38]} {[%emt 00:00:02]} Nd5 {[%clk 00:00:48]}
{[%emt 00:00:15]} 38. Bxd5 {[%clk 00:00:36]} {[%emt 00:00:12]} exd5 {[%clk
00:00:43]} {[%emt 00:00:15]} 39. R6xd5 {[%clk 00:00:44]} {[%emt 00:00:01]} Rcc8
{[%clk 00:00:16]} {[%emt 00:00:37]} 40. Rxb5 {[%clk 00:00:51]} {[%emt
00:00:04]} Ra8 {[%clk 00:00:23]} {[%emt 00:00:03]} 41. Rb7 {[%clk 00:01:00]} g6
{[%clk 00:00:27]} {[%emt 00:00:07]} 42. Rdd7 {[%clk 00:00:45]} {[%emt
00:00:24]} Kg7 {[%clk 00:00:29]} {[%emt 00:00:08]} 43. Kg2 {[%clk 00:00:41]}
{[%emt 00:00:14]} h5 {[%clk 00:00:32]} {[%emt 00:00:06]} 44. Kf3 {[%clk
00:00:47]} {[%emt 00:00:04]} Kf6 {[%clk 00:00:21]} {[%emt 00:00:21]} 45. Ke4
{[%clk 00:00:44]} {[%emt 00:00:13]} Rfe8+ {[%clk 00:00:27]} {[%emt 00:00:05]}
46. Kd5 {[%clk 00:00:52]} {[%emt 00:00:02]} Rf8 {[%clk 00:00:15]} {[%emt
00:00:23]} 47. Kc6 {[%clk 00:00:45]} {[%emt 00:00:15]} Rac8+ {[%clk 00:00:14]}
{[%emt 00:00:12]} 48. Rdc7 {[%clk 00:00:36]} {[%emt 00:00:19]} Rce8 {[%clk
00:00:17]} {[%emt 00:00:06]} 49. Kb6 {[%clk 00:00:37]} {[%emt 00:00:09]} Re2
{[%clk 00:00:18]} {[%emt 00:00:10]} 50. Rc6 {[%clk 00:00:29]} {[%emt 00:00:18]}
Kg7 {[%clk 00:00:12]} {[%emt 00:00:15]} 51. Rb8 {[%clk 00:00:29]} {[%emt
00:00:10]} Rb2+ {[%clk 00:00:16]} {[%emt 00:00:06]} 52. Kc7 {[%clk 00:00:38]}
{[%emt 00:00:01]} Ra2 {[%clk 00:00:26]} 53. Rxf8 {[%clk 00:00:42]} {[%emt
00:00:06]} Kxf8 {[%clk 00:00:35]} {[%emt 00:00:01]} 54. Kb7 {[%clk 00:00:51]}
{[%emt 00:00:01]} Rb2+ {[%clk 00:00:11]} {[%emt 00:00:33]} 55. Rb6 {[%clk
00:01:00]} {[%emt 00:00:01]} 1-0

[Event "FIDE U16 Olympiad_boards_1-80"]
[Site "Eindhoven, Netherlands"]
[Date "2023.08.14"]
[Round "3.53"]
[White "Huang, Youhe"]
[Black "Savicevs, Arsenijs"]
[Result "0-1"]
[TimeControl "2700+10"]
[WhiteElo "1849"]
[BlackElo "2136"]

1. e4 {[%clk 00:45:17]} {[%emt 00:00:02]} c5 {[%clk 00:45:18]} {[%emt
00:00:02]} 2. Nc3 {[%clk 00:45:24]} {[%emt 00:00:03]} d6 {[%clk 00:45:26]}
{[%emt 00:00:02]} 3. Nf3 {[%clk 00:45:31]} {[%emt 00:00:03]} Nf6 {[%clk
00:45:31]} {[%emt 00:00:06]} 4. e5 {[%clk 00:45:03]} {[%emt 00:00:38]} dxe5
{[%clk 00:45:38]} {[%emt 00:00:03]} 5. Nxe5 {[%clk 00:45:12]} {[%emt 00:00:01]}
Nbd7 {[%clk 00:45:31]} {[%emt 00:00:17]} 6. d4 {[%clk 00:44:32]} {[%emt
00:00:50]} e6 {[%clk 00:43:12]} {[%emt 00:02:28]} 7. Bf4 {[%clk 00:44:26]}
{[%emt 00:00:17]} cxd4 {[%clk 00:41:46]} {[%emt 00:01:36]} 8. Qxd4 {[%clk
00:44:33]} {[%emt 00:00:02]} Bc5 {[%clk 00:41:49]} {[%emt 00:00:07]} 9. Qa4
{[%clk 00:43:05]} {[%emt 00:01:38]} O-O {[%clk 00:40:26]} {[%emt 00:01:33]} 10.
O-O-O {[%clk 00:42:58]} {[%emt 00:00:17]} Qe7 {[%clk 00:40:22]} {[%emt
00:00:13]} 11. Nc4 {[%clk 00:40:30]} {[%emt 00:02:39]} Ng4 {[%clk 00:37:47]}
{[%emt 00:02:45]} 12. Ne4 {[%clk 00:39:44]} {[%emt 00:00:57]} Nxf2 {[%clk
00:37:46]} {[%emt 00:00:11]} 13. Nxf2 {[%clk 00:39:04]} {[%emt 00:00:49]} Bxf2
{[%clk 00:37:53]} {[%emt 00:00:02]} 14. Bd6 {[%clk 00:37:00]} {[%emt 00:02:15]}
Qg5+ {[%clk 00:37:33]} {[%emt 00:00:30]} 15. Kb1 {[%clk 00:37:09]} {[%emt
00:00:02]} b5 {[%clk 00:35:08]} {[%emt 00:02:34]} 16. Qa5 {[%clk 00:34:31]}
{[%emt 00:02:48]} Qg4 {[%clk 00:34:58]} {[%emt 00:00:20]} 17. Rd2 {[%clk
00:27:10]} {[%emt 00:07:32]} bxc4 {[%clk 00:32:56]} {[%emt 00:02:11]} 18. h3
{[%clk 00:27:06]} {[%emt 00:00:13]} Qh4 {[%clk 00:32:09]} {[%emt 00:00:59]} 19.
Re2 {[%clk 00:08:12]} {[%emt 00:19:03]} Bb6 {[%clk 00:31:36]} {[%emt 00:00:43]}
20. Qc3 {[%clk 00:06:41]} {[%emt 00:01:42]} Rd8 {[%clk 00:30:54]} {[%emt
00:00:51]} 21. g3 {[%clk 00:05:28]} {[%emt 00:01:23]} Qh5 {[%clk 00:29:51]}
{[%emt 00:01:13]} 22. Be7 {[%clk 00:04:15]} {[%emt 00:01:23]} Re8 {[%clk
00:29:43]} {[%emt 00:00:18]} 23. g4 {[%clk 00:04:20]} {[%emt 00:00:06]} Qb5
{[%clk 00:29:29]} {[%emt 00:00:22]} 24. Bg2 {[%clk 00:04:09]} {[%emt 00:00:23]}
Ba5 {[%clk 00:29:03]} {[%emt 00:00:36]} 25. a4 {[%clk 00:02:48]} {[%emt
00:01:30]} Bxc3 {[%clk 00:28:22]} {[%emt 00:00:51]} 26. axb5 {[%clk 00:02:56]}
{[%emt 00:00:03]} Rb8 {[%clk 00:28:29]} {[%emt 00:00:03]} 27. Ba3 {[%clk
00:01:43]} {[%emt 00:01:23]} Rxb5 {[%clk 00:28:17]} {[%emt 00:00:21]} 28. Ka2
{[%clk 00:01:28]} {[%emt 00:00:25]} Bb4 {[%clk 00:28:02]} {[%emt 00:00:25]} 29.
Rd1 {[%clk 00:00:53]} {[%emt 00:00:45]} Bxa3 {[%clk 00:28:09]} {[%emt
00:00:03]} 30. bxa3 {[%clk 00:01:00]} {[%emt 00:00:03]} Rb6 {[%clk 00:27:16]}
{[%emt 00:01:03]} 31. Red2 {[%clk 00:00:40]} {[%emt 00:00:30]} Nc5 {[%clk
00:27:20]} {[%emt 00:00:06]} 32. Rd4 {[%clk 00:00:25]} {[%emt 00:00:26]} Ba6
{[%clk 00:26:58]} {[%emt 00:00:31]} 33. Rd6 {[%clk 00:00:17]} {[%emt 00:00:18]}
Kf8 {[%clk 00:26:21]} {[%emt 00:00:46]} 34. Rxb6 {[%clk 00:00:22]} {[%emt
00:00:05]} axb6 {[%clk 00:26:29]} {[%emt 00:00:02]} 35. Rd6 {[%clk 00:00:28]}
{[%emt 00:00:05]} Rb8 {[%clk 00:26:37]} {[%emt 00:00:02]} 36. Bc6 {[%clk
00:00:28]} {[%emt 00:00:10]} Ke7 {[%clk 00:26:44]} {[%emt 00:00:03]} 37. Rd4
{[%clk 00:00:35]} {[%emt 00:00:03]} Rd8 {[%clk 00:26:47]} {[%emt 00:00:07]} 38.
Rxd8 {[%clk 00:00:14]} {[%emt 00:00:32]} Kxd8 {[%clk 00:26:55]} {[%emt
00:00:01]} 39. Kb2 {[%clk 00:00:23]} {[%emt 00:00:02]} f5 {[%clk 00:26:23]}
{[%emt 00:00:41]} 40. gxf5 {[%clk 00:00:17]} {[%emt 00:00:16]} exf5 {[%clk
00:26:31]} {[%emt 00:00:02]} 41. Kc3 {[%clk 00:00:25]} {[%emt 00:00:03]} g5
{[%clk 00:26:32]} {[%emt 00:00:08]} 42. Bf3 {[%clk 00:00:25]} {[%emt 00:00:10]}
Ne4+ {[%clk 00:26:37]} {[%emt 00:00:06]} 43. Kd4 {[%clk 00:00:27]} {[%emt
00:00:08]} Nf2 {[%clk 00:26:42]} {[%emt 00:00:04]} 44. Ke5 {[%clk 00:00:18]}
{[%emt 00:00:20]} Bc8 {[%clk 00:26:32]} {[%emt 00:00:19]} 45. Bg2 {[%clk
00:00:14]} {[%emt 00:00:15]} h5 {[%clk 00:26:35]} {[%emt 00:00:06]} 46. Kf6
{[%clk 00:00:18]} {[%emt 00:00:06]} g4 {[%clk 00:26:23]} {[%emt 00:00:22]} 47.
hxg4 {[%clk 00:00:14]} {[%emt 00:00:14]} hxg4 {[%clk 00:26:31]} {[%emt
00:00:02]} 48. Kg5 {[%clk 00:00:20]} {[%emt 00:00:04]} Nh3+ {[%clk 00:26:39]}
{[%emt 00:00:02]} 49. Kh4 {[%clk 00:00:21]} {[%emt 00:00:09]} f4 {[%clk
00:26:47]} {[%emt 00:00:02]} 50. Bf1 {[%clk 00:00:12]} {[%emt 00:00:19]} f3
{[%clk 00:26:51]} {[%emt 00:00:04]} 51. Kg3 {[%clk 00:00:21]} {[%emt 00:00:03]}
Ng5 {[%clk 00:26:57]} {[%emt 00:00:04]} 52. Kf4 {[%clk 00:00:23]} {[%emt
00:00:08]} Ne6+ {[%clk 00:26:36]} {[%emt 00:00:31]} 53. Kxg4 {[%clk 00:00:26]}
{[%emt 00:00:08]} Nd4+ {[%clk 00:26:43]} {[%emt 00:00:02]} 54. Kg3 {[%clk
00:00:29]} {[%emt 00:00:06]} Nxc2 {[%clk 00:26:50]} {[%emt 00:00:03]} 55. Bxc4
{[%clk 00:00:19]} {[%emt 00:00:22]} Nxa3 {[%clk 00:26:53]} {[%emt 00:00:06]} 56.
Bd5 {[%clk 00:00:19]} {[%emt 00:00:10]} Kc7 {[%clk 00:26:57]} {[%emt 00:00:06]}
57. Bxf3 {[%clk 00:00:21]} {[%emt 00:00:08]} Kd6 {[%clk 00:27:04]} {[%emt
00:00:02]} 58. Kf4 {[%clk 00:00:29]} {[%emt 00:00:03]} Kc5 {[%clk 00:27:11]}
{[%emt 00:00:03]} 59. Ke3 {[%clk 00:00:24]} {[%emt 00:00:15]} Nc4+ {[%clk
00:27:17]} {[%emt 00:00:04]} 60. Ke2 {[%clk 00:00:29]} {[%emt 00:00:05]} b5
{[%clk 00:27:20]} {[%emt 00:00:07]} 61. Ba8 {[%clk 00:00:18]} {[%emt 00:00:21]}
b4 {[%clk 00:27:25]} {[%emt 00:00:05]} 62. Kd1 {[%clk 00:00:14]} {[%emt
00:00:15]} Bf5 {[%clk 00:27:25]} {[%emt 00:00:09]} 63. Bf3 {[%clk 00:00:13]}
{[%emt 00:00:12]} b3 {[%clk 00:27:24]} {[%emt 00:00:11]} 0-1

[Event "FIDE U16 Olympiad_boards_1-80"]
[Site "Eindhoven, Netherlands"]
[Date "2023.08.14"]
[Round "3.54"]
[White "Adamovics, Aleksejs"]
[Black "Liu, Henry"]
[Result "1/2-1/2"]
[TimeControl "2700+10"]
[WhiteElo "2000"]
[BlackElo "1816"]

1. c4 {[%clk 00:45:15]} {[%emt 00:00:04]} e5 {[%clk 00:44:27]} {[%emt
00:00:54]} 2. Nc3 {[%clk 00:45:22]} {[%emt 00:00:03]} Nc6 {[%clk 00:44:25]}
{[%emt 00:00:12]} 3. g3 {[%clk 00:44:59]} {[%emt 00:00:33]} g6 {[%clk
00:44:20]} {[%emt 00:00:15]} 4. Bg2 {[%clk 00:44:54]} {[%emt 00:00:15]} Bg7
{[%clk 00:44:24]} {[%emt 00:00:06]} 5. e4 {[%clk 00:44:09]} {[%emt 00:00:55]}
Nge7 {[%clk 00:44:15]} {[%emt 00:00:19]} 6. Nge2 {[%clk 00:44:17]} {[%emt
00:00:01]} O-O {[%clk 00:44:08]} {[%emt 00:00:17]} 7. O-O {[%clk 00:44:25]}
{[%emt 00:00:03]} d6 {[%clk 00:43:54]} {[%emt 00:00:24]} 8. d3 {[%clk
00:44:31]} {[%emt 00:00:04]} f5 {[%clk 00:42:15]} {[%emt 00:01:49]} 9. Be3
{[%clk 00:41:52]} {[%emt 00:02:49]} Be6 {[%clk 00:39:58]} {[%emt 00:02:28]} 10.
Nd5 {[%clk 00:40:06]} {[%emt 00:01:55]} Qd7 {[%clk 00:38:00]} {[%emt 00:02:08]}
11. Qd2 {[%clk 00:38:52]} {[%emt 00:01:24]} Rf7 {[%clk 00:30:19]} {[%emt
00:07:51]} 12. Rab1 {[%clk 00:33:30]} {[%emt 00:05:32]} Raf8 {[%clk 00:27:06]}
{[%emt 00:03:23]} 13. b4 {[%clk 00:32:48]} {[%emt 00:00:52]} b6 {[%clk
00:25:50]} {[%emt 00:01:27]} 14. b5 {[%clk 00:28:14]} {[%emt 00:04:43]} Na5
{[%emt 00:02:57]} 15. Nxe7+ {[%clk 00:27:36]} Rxe7 {[%clk 00:22:12]} {[%emt
00:01:48]} 16. exf5 {[%clk 00:23:37]} {[%emt 00:04:08]} Bxf5 {[%clk 00:21:07]}
{[%emt 00:01:16]} 17. Nc3 {[%clk 00:21:18]} {[%emt 00:02:30]} Bh3 {[%clk
00:18:44]} {[%emt 00:02:32]} 18. Nd5 {[%clk 00:17:11]} {[%emt 00:04:17]} Ref7
{[%clk 00:17:45]} {[%emt 00:01:10]} 19. f4 {[%clk 00:16:56]} {[%emt 00:00:24]}
e4 {[%clk 00:15:04]} {[%emt 00:02:51]} 20. dxe4 {[%clk 00:14:19]} {[%emt
00:02:48]} Nxc4 {[%clk 00:15:05]} {[%emt 00:00:08]} 21. Qd3 {[%clk 00:14:24]}
{[%emt 00:00:04]} Bxg2 {[%clk 00:14:36]} {[%emt 00:00:40]} 22. Kxg2 {[%clk
00:14:24]} {[%emt 00:00:10]} Nxe3+ {[%clk 00:12:15]} {[%emt 00:02:31]} 23. Qxe3
{[%clk 00:14:10]} {[%emt 00:00:24]} c6 {[%clk 00:11:37]} {[%emt 00:00:48]} 24.
bxc6 {[%clk 00:13:41]} {[%emt 00:00:40]} Qxc6 {[%clk 00:11:46]} 25. Qb3 {[%clk
00:12:59]} {[%emt 00:00:52]} Qc5 {[%clk 00:10:21]} {[%emt 00:01:36]} 26. Rfd1
{[%clk 00:10:00]} {[%emt 00:03:09]} Kh8 {[%clk 00:08:29]} {[%emt 00:02:02]} 27.
Rbc1 {[%clk 00:09:44]} {[%emt 00:00:25]} Qa5 {[%clk 00:08:31]} {[%emt
00:00:08]} 28. Nc7 {[%clk 00:09:18]} {[%emt 00:00:37]} Qh5 {[%clk 00:07:32]}
{[%emt 00:01:08]} 29. Qf3 {[%clk 00:07:40]} {[%emt 00:01:48]} Qa5 {[%clk
00:06:38]} {[%emt 00:01:04]} 30. Qb3 {[%clk 00:07:02]} {[%emt 00:00:48]} Qh5
{[%clk 00:06:37]} {[%emt 00:00:11]} 31. Rd2 {[%clk 00:07:07]} {[%emt 00:00:05]}
Re7 {[%clk 00:05:40]} {[%emt 00:01:08]} 1/2-1/2